bitfinex-derivatives/quotes_BTCF0:USTF0_20260106
["timestamp","ask_amount","ask_price","bid_price","bid_amount"]
[1767718362024,0.0918,92696.0,92677.0,0.010793]
[1767718362317,0.0918,92696.0,92670.0,0.12715758]
[1767718362318,0.09079729,92697.0,92670.0,0.12715758]
[1767718362520,0.09079729,92696.0,92662.0,0.09014925]
[1767718362717,0.0918,92695.0,92674.0,0.010794]
[1767718363023,0.18259729,92695.0,92674.0,0.010794]
[1767718363322,0.18259729,92695.0,92662.0,0.09014925]
[1767718363323,0.09079729,92694.0,92662.0,0.09014925]
[1767718363520,0.06512791,92689.0,92664.0,0.010795]
[1767718363723,0.09079729,92687.0,92671.0,0.010794]
[1767718363918,0.09079729,92687.0,92658.0,0.010796]
[1767718363919,0.09079729,92687.0,92666.0,0.010795]
[1767718364126,0.3068,92699.0,92649.0,0.010797]
[1767718364127,0.09079729,92696.0,92661.0,0.07053663]
[1767718364320,0.0918,92695.0,92670.0,0.12715758]
[1767718364518,0.0918,92694.0,92677.0,0.010793]
[1767718364718,0.0918,92693.0,92676.0,0.010793]
[1767718365426,0.0918,92693.0,92675.0,0.010794]
[1767718365622,0.0918,92693.0,92670.0,0.12715758]
[1767718365827,0.09079729,92690.0,92670.0,0.010794]
[1767718366026,0.09079729,92690.0,92660.0,0.12715758]
[1767718366219,0.09079729,92690.0,92670.0,0.010794]
[1767718366415,0.09079729,92690.0,92660.0,0.21730683]
[1767718366826,0.09079729,92690.0,92654.0,0.07053663]
[1767718366827,0.10158929,92686.0,92654.0,0.07053663]
[1767718367019,0.10158929,92686.0,92635.0,9.29e-05]
[1767718367020,0.09079729,92667.0,92641.0,0.09014925]
[1767718367221,0.19339229,92666.0,92641.0,0.010798]
[1767718367415,0.10159229,92664.0,92635.0,9.29e-05]
[1767718367624,0.09079729,92660.0,92635.0,9.29e-05]
[1767718367823,0.09079729,92660.0,92640.0,0.12715758]
[1767718368128,0.09079729,92660.0,92635.0,9.29e-05]
[1767718368129,0.010797,92651.0,92635.0,9.29e-05]
[1767718368326,0.06512791,92657.0,92620.0,0.12715758]
[1767718368327,0.09079729,92648.0,92620.0,0.12715758]
[1767718368533,0.0918,92647.0,92619.0,0.0108]
[1767718368722,0.0918,92647.0,92614.0,0.25248588]
[1767718368723,0.09079729,92646.0,92614.0,0.25248588]
[1767718369028,0.09079729,92646.0,92621.0,0.0108]
[1767718369228,0.09089427,92645.0,92621.0,0.0108]
[1767718369426,0.09089427,92645.0,92614.0,0.16068588]
[1767718369618,0.09079729,92643.0,92616.0,0.0108]
[1767718369822,0.09079729,92643.0,92614.0,0.09014925]
[1767718370033,0.0918,92647.0,92607.0,0.0918]
[1767718370034,0.09079729,92639.0,92613.0,0.010801]
[1767718370224,0.06512791,92636.0,92609.0,0.010801]
[1767718370422,0.09079729,92634.0,92609.0,0.010801]
[1767718370625,0.09079729,92634.0,92611.0,0.010801]
[1767718370825,0.09079729,92634.0,92604.0,0.09014925]
[1767718371130,0.09189001,92635.0,92600.0,0.21895758]
[1767718371131,0.09079729,92628.0,92600.0,0.21895758]
[1767718371335,8.798e-05,92627.0,92608.0,0.010801]
[1767718372022,8.798e-05,92627.0,92600.0,0.21895758]
[1767718372224,8.798e-05,92627.0,92610.0,0.12715758]
[1767718372424,0.09079729,92646.0,92629.0,0.010799]
[1767718372732,0.09079729,92646.0,92618.0,0.09014925]
[1767718372733,0.09079729,92655.0,92627.0,0.12715758]
[1767718372940,0.0918,92654.0,92645.0,0.12715758]
[1767718373238,0.09079729,92664.0,92640.0,0.12715758]
[1767718373239,0.0918,92653.0,92640.0,0.12715758]
[1767718373537,0.0918,92652.0,92640.0,0.12715758]
[1767718373732,0.0918,92651.0,92640.0,0.12715758]
[1767718373928,0.0918,92651.0,92632.0,0.010799]
[1767718374642,0.0918,92651.0,92629.0,0.09014925]
[1767718374936,0.0918,92650.0,92641.0,0.010798]
[1767718375234,0.09079729,92664.0,92641.0,0.010798]
[1767718375430,0.0918,92663.0,92641.0,0.010798]
[1767718375632,0.09079729,92664.0,92629.0,0.09014925]
[1767718375833,0.0918,92663.0,92629.0,0.09014925]
[1767718376037,0.0918,92663.0,92635.0,0.010798]
[1767718376333,0.09079729,92664.0,92639.0,0.010798]
[1767718376524,0.0918,92662.0,92635.0,0.010798]
[1767718377122,0.09079729,92664.0,92629.0,0.09014925]
[1767718377327,0.0918,92663.0,92660.0,0.010795]
[1767718377527,0.09298275,92676.0,92659.0,0.010795]
[1767718377728,0.06426353,92684.0,92641.0,0.15387467]
[1767718377729,0.0918,92675.0,92662.0,0.010795]
[1767718377934,0.0918,92674.0,92659.0,0.010796]
[1767718378128,0.0918,92673.0,92656.0,0.010796]
[1767718378337,0.0918,92672.0,92656.0,0.010796]
[1767718379341,0.0868,92672.0,92656.0,0.010796]
[1767718379839,0.09298275,92684.0,92668.0,0.010794]
[1767718380027,0.0918,92683.0,92664.0,0.010795]
[1767718380541,0.09298275,92684.0,92667.0,0.010795]
[1767718380846,0.0918,92683.0,92667.0,0.010795]
[1767718381036,0.0918,92682.0,92667.0,0.010795]
[1767718381340,0.09298275,92692.0,92661.0,0.09620692]
[1767718381542,0.0918,92691.0,92661.0,0.09620692]
[1767718381841,0.0918,92691.0,92652.0,0.0918]
[1767718381842,0.09300677,92680.0,92652.0,0.18800692]
[1767718382050,0.0918,92679.0,92659.0,0.010795]
[1767718382435,0.0918,92679.0,92652.0,0.18800692]
[1767718382745,0.0918,92679.0,92663.0,0.010795]
[1767718383734,0.0918,92679.0,92665.0,0.010795]
[1767718384343,0.10379877,92689.0,92664.0,0.010795]
[1767718384656,0.010792,92687.0,92664.0,0.010795]
[1767718384848,0.010793,92677.0,92655.0,0.010796]
[1767718385139,0.09300677,92672.0,92652.0,0.0918]
[1767718385340,0.0918,92671.0,92641.0,0.171471]
[1767718385541,0.0918,92671.0,92642.0,0.0918]
[1767718385847,0.09300677,92668.0,92644.0,0.010797]
[1767718386148,0.09300677,92668.0,92642.0,0.0918]
[1767718386439,0.010792,92689.0,92642.0,0.0918]
[1767718386440,0.09300677,92686.0,92657.0,0.06446608]
[1767718386646,0.06343359,92698.0,92680.0,0.010793]
[1767718386839,0.18480677,92697.0,92681.0,0.010793]
[1767718387045,0.09300677,92697.0,92678.0,0.010793]
[1767718387240,0.09300677,92697.0,92671.0,0.18800692]
[1767718387241,0.0918,92698.0,92680.0,0.010793]
[1767718387450,0.06343359,92707.0,92671.0,0.18800692]
[1767718387451,0.09300677,92716.0,92678.0,0.010793]
[1767718387642,0.0918,92715.0,92699.0,0.010791]
[1767718387943,0.09300677,92714.0,92689.0,0.0918]
[1767718388340,0.09300677,92714.0,92689.0,0.102592]
[1767718388641,0.09300677,92714.0,92689.0,0.0918]
[1767718388839,0.09300677,92714.0,92690.0,0.010792]
[1767718389242,0.010788,92720.0,92689.0,0.18800692]
[1767718389545,0.10379577,92712.0,92689.0,0.0918]
[1767718389735,0.09300677,92712.0,92689.0,0.102592]
[1767718390544,0.01079,92709.0,92689.0,0.0918]
[1767718390757,0.09300677,92712.0,92689.0,0.0918]
[1767718390951,0.09300677,92706.0,92689.0,0.0918]
[1767718391345,0.01079,92705.0,92689.0,0.0918]
[1767718392047,0.09300677,92706.0,92678.0,0.010793]
[1767718392246,0.09300677,92704.0,92674.0,0.0918]
[1767718392455,0.09300677,92713.0,92682.0,0.09620692]
[1767718392657,0.0918,92712.0,92682.0,0.09620692]
[1767718392954,0.0918,92711.0,92694.0,0.010791]
[1767718393139,0.09300677,92713.0,92691.0,0.010792]
[1767718393339,0.0918,92712.0,92688.0,0.010792]
[1767718393552,0.0918,92712.0,92690.0,0.010792]
[1767718393750,0.0918,92712.0,92690.0,0.005792]
[1767718393947,0.0918,92712.0,92685.0,0.0918]
[1767718394539,0.0918,92712.0,92690.0,0.010792]
[1767718395152,0.10379677,92711.0,92685.0,0.0918]
[1767718395445,0.0918,92712.0,92685.0,0.0918]
[1767718395446,0.09300677,92709.0,92685.0,0.0918]
[1767718395653,0.010791,92702.0,92685.0,0.0918]
[1767718395855,0.10379777,92699.0,92674.0,0.010794]
[1767718396040,0.09300677,92699.0,92675.0,0.0918]
[1767718396246,0.09300677,92709.0,92687.0,0.010792]
[1767718396450,0.0918,92713.0,92698.0,0.010791]
[1767718396852,0.09300677,92722.0,92694.0,0.010791]
[1767718397047,0.0918,92721.0,92694.0,0.010791]
[1767718397251,0.09300677,92720.0,92694.0,0.010791]
[1767718397757,0.09300677,92720.0,92690.0,0.0918]
[1767718398241,0.09300677,92720.0,92692.0,0.010792]
[1767718398443,0.09300677,92720.0,92697.0,0.010791]
[1767718398658,0.09300677,92719.0,92694.0,0.010791]
[1767718398839,0.15644036,92719.0,92694.0,0.010791]
[1767718399045,0.09300677,92717.0,92691.0,0.010792]
[1767718399240,0.09300677,92717.0,92698.0,0.010791]
[1767718399445,0.0918,92716.0,92690.0,0.0918]
[1767718399647,0.0918,92716.0,92700.0,0.010791]
[1767718399949,0.09300677,92725.0,92692.0,0.09620692]
[1767718400250,0.2003,92758.0,92725.0,0.010788]
[1767718400251,0.06343359,92734.0,92725.0,0.010788]
[1767718400445,0.06343359,92734.0,92704.0,0.10699692]
[1767718400446,0.0918,92733.0,92704.0,0.10699692]
[1767718400647,0.06343359,92742.0,92704.0,0.09620692]
[1767718400955,0.06343359,92740.0,92718.0,0.010789]
[1767718401146,0.06343359,92740.0,92704.0,0.09620692]
[1767718401543,0.09300677,92729.0,92703.0,0.0918]
[1767718401748,0.010787,92736.0,92695.0,0.010791]
[1767718401749,0.09300677,92718.0,92695.0,0.010791]
[1767718401951,0.09300677,92718.0,92681.0,0.06446608]
[1767718401952,0.10379577,92718.0,92696.0,0.0918]
[1767718402151,0.10379577,92718.0,92695.0,0.0918]
[1767718402352,0.09300677,92718.0,92697.0,0.010791]
[1767718402741,0.09300677,92718.0,92695.0,0.0918]
[1767718403147,0.09300677,92718.0,92700.0,0.010791]
[1767718403743,0.09300677,92718.0,92695.0,0.0918]
[1767718403949,0.09300677,92718.0,92699.0,0.010791]
[1767718404251,0.09300677,92718.0,92704.0,0.01079]
[1767718404452,0.09300677,92726.0,92696.0,0.09620692]
[1767718404658,0.09176,92725.0,92709.0,0.01079]
[1767718404855,0.09176,92725.0,92711.0,0.010789]
[1767718405247,0.09176,92725.0,92703.0,0.09620692]
[1767718405446,0.09176,92725.0,92712.0,0.010789]
[1767718405861,0.09176,92725.0,92703.0,0.09620692]
[1767718406156,0.09300677,92719.0,92695.0,0.0918]
[1767718406344,0.09300677,92719.0,92698.0,0.010791]
[1767718406546,0.09300677,92719.0,92700.0,0.010791]
[1767718406955,0.09300677,92719.0,92697.0,0.010791]
[1767718407144,0.90456,92742.0,92695.0,0.0918]
[1767718407145,0.09176,92734.0,92711.0,0.09620692]
[1767718407343,0.09176,92734.0,92721.0,0.010788]
[1767718407551,0.09176,92734.0,92711.0,0.09620692]
[1767718407751,0.09176,92734.0,92714.0,0.010789]
[1767718407957,0.09300677,92738.0,92721.0,0.010788]
[1767718408158,0.09300677,92751.0,92733.0,0.010787]
[1767718408363,0.09300677,92751.0,92740.0,0.010786]
[1767718408661,0.09176,92755.0,92736.0,0.010787]
[1767718408956,0.18476677,92755.0,92733.0,0.010787]
[1767718409152,0.18476677,92755.0,92725.0,0.09620692]
[1767718409153,0.09300677,92754.0,92730.0,0.005787]
[1767718409356,0.09300677,92754.0,92725.0,0.09620692]
[1767718409657,0.09300677,92747.0,92730.0,0.010787]
[1767718409860,0.13025991,92754.0,92726.0,0.09620692]
[1767718410052,0.09176,92753.0,92726.0,0.09620692]
[1767718410250,0.09176,92753.0,92728.0,0.09620692]
[1767718410552,0.09176,92753.0,92732.0,0.010787]
[1767718410944,0.09176,92753.0,92731.0,0.102547]
[1767718411347,0.09176,92753.0,92733.0,0.010787]
[1767718411554,0.09176,92753.0,92735.0,0.010787]
[1767718412145,0.09176,92753.0,92737.0,0.010786]
[1767718412761,0.09176,92753.0,92734.0,0.010787]
[1767718412952,0.09300677,92754.0,92734.0,0.010787]
[1767718413152,0.09300677,92754.0,92736.0,0.010787]
[1767718413854,0.09300677,92754.0,92735.0,0.010787]
[1767718414058,0.09300677,92754.0,92732.0,0.010787]
[1767718414256,0.09300677,92754.0,92736.0,0.010787]
[1767718414860,0.09300677,92754.0,92731.0,0.09176]
[1767718415062,0.01294014,92759.0,92738.0,0.09616527]
[1767718415063,0.00215614,92759.0,92738.0,0.09616527]
[1767718415261,0.00215614,92759.0,92741.0,0.010786]
[1767718415565,0.09709831,92750.0,92732.0,0.09176]
[1767718415757,0.09709831,92750.0,92722.0,0.09616527]
[1767718415960,0.010786,92744.0,92723.0,0.09176]
[1767718416259,0.010784,92757.0,92730.0,0.010787]
[1767718416567,0.010784,92757.0,92720.0,0.010788]
[1767718416568,0.09709831,92752.0,92731.0,0.09176]
[1767718416761,0.09709831,92750.0,92732.0,0.09176]
[1767718416955,0.09709831,92750.0,92733.0,0.08276]
[1767718417257,0.18885831,92758.0,92734.0,0.09176]
[1767718417451,0.18885831,92758.0,92734.0,0.102547]
[1767718417647,0.09176,92758.0,92734.0,0.18792527]
[1767718417852,0.00215614,92759.0,92740.0,0.010786]
[1767718418763,0.00215614,92759.0,92735.0,0.09616527]
[1767718418764,0.00215614,92759.0,92741.0,0.010786]
[1767718419260,0.00215614,92759.0,92727.0,0.10695227]
[1767718419261,0.12600013,92754.0,92727.0,0.10695227]
[1767718419457,0.00215614,92759.0,92731.0,0.010787]
[1767718419458,0.09709831,92752.0,92731.0,0.010787]
[1767718419762,0.09709831,92752.0,92732.0,0.09176]
[1767718419964,0.09709831,92752.0,92732.0,0.010787]
[1767718420262,0.09709831,92752.0,92733.0,0.09176]
[1767718420956,0.09709831,92752.0,92734.0,0.010787]
[1767718421159,0.00215614,92759.0,92733.0,0.09176]
[1767718421363,0.12407214,92751.0,92719.0,0.09616527]
[1767718421546,0.09709831,92750.0,92732.0,0.010787]
[1767718421751,0.09709831,92750.0,92733.0,0.09176]
[1767718422172,0.09709831,92750.0,92734.0,0.09176]
[1767718422947,0.02912997,92759.0,92734.0,0.09176]
[1767718423154,0.00215614,92759.0,92743.0,0.09616527]
[1767718423347,0.00215614,92759.0,92744.0,0.09176]
[1767718423957,0.00215614,92759.0,92736.0,0.06236875]
[1767718424164,0.09709831,92758.0,92737.0,0.09176]
[1767718424352,0.09709831,92758.0,92738.0,0.09176]
[1767718424553,0.09709831,92758.0,92739.0,0.010786]
[1767718424747,0.00215614,92759.0,92738.0,0.088546]
[1767718425465,0.00215614,92759.0,92746.0,0.09616527]
[1767718425659,0.01361506,92774.0,92758.0,0.010784]
[1767718425960,0.09709831,92775.0,92752.0,0.09176]
[1767718426560,0.09709831,92775.0,92755.0,0.010784]
[1767718426762,0.09376546,92786.0,92758.0,0.09616527]
[1767718426955,0.09709831,92785.0,92758.0,0.10694927]
[1767718427152,0.09709831,92776.0,92752.0,0.102545]
[1767718427355,0.09709831,92767.0,92747.0,0.010785]
[1767718427856,0.02818023,92768.0,92740.0,0.09172]
[1767718427857,0.09172,92766.0,92744.0,0.010786]
[1767718428060,0.09709831,92762.0,92740.0,0.102506]
[1767718428249,0.09709831,92762.0,92741.0,0.010786]
[1767718428655,0.09172,92766.0,92741.0,0.010786]
[1767718428956,0.09709831,92765.0,92743.0,0.010786]
[1767718429555,0.09709831,92763.0,92740.0,0.09172]
[1767718429754,0.09709831,92760.0,92740.0,0.09172]
[1767718430062,0.02901623,92774.0,92743.0,0.09616527]
[1767718430266,0.02901623,92774.0,92734.0,0.09172]
[1767718430267,0.010784,92760.0,92737.0,0.09172]
[1767718430455,0.09172,92760.0,92737.0,0.09172]
[1767718430655,0.09172,92760.0,92742.0,0.010786]
[1767718430857,0.09172,92761.0,92747.0,0.010785]
[1767718431056,0.010783,92771.0,92747.0,0.010785]
[1767718431057,0.09172,92762.0,92747.0,0.010785]
[1767718431565,0.09172,92762.0,92742.0,0.010786]
[1767718431865,0.09172,92762.0,92742.0,0.10695127]
[1767718432354,0.010783,92769.0,92742.0,0.10695127]
[1767718432561,0.09172,92768.0,92742.0,0.09616527]
[1767718432761,0.09709831,92761.0,92737.0,0.09172]
[1767718433066,0.10788231,92761.0,92737.0,0.102506]
[1767718433265,0.010783,92765.0,92739.0,0.010786]
[1767718433467,0.09709831,92765.0,92738.0,0.09616527]
[1767718433669,0.010784,92760.0,92738.0,0.09616527]
[1767718434054,0.09709831,92765.0,92738.0,0.09616527]
[1767718434055,0.010784,92763.0,92739.0,0.010786]
[1767718434263,0.10788131,92765.0,92740.0,0.010786]
[1767718434664,0.09709831,92765.0,92742.0,0.010786]
[1767718435262,0.09709831,92765.0,92738.0,0.09616527]
[1767718435472,0.09709831,92765.0,92744.0,0.010786]
[1767718435772,0.010783,92764.0,92736.0,0.05293249]
[1767718435975,0.09172,92768.0,92736.0,0.05293249]
[1767718435976,0.09709831,92758.0,92736.0,0.05293249]
[1767718436171,0.09709831,92748.0,92715.0,0.06236875]
[1767718436368,0.09709831,92748.0,92726.0,0.010788]
[1767718436571,0.09709831,92741.0,92722.0,0.09172]
[1767718436957,0.09709831,92741.0,92708.0,0.06236875]
[1767718437173,0.09709831,92741.0,92718.0,0.010789]
[1767718437372,0.09709831,92741.0,92720.0,0.010788]
[1767718438768,0.02712874,92744.0,92718.0,0.09172]
[1767718438769,0.09281954,92740.0,92718.0,0.09172]
[1767718438967,0.09281954,92740.0,92719.0,0.010789]
[1767718439170,0.09281954,92740.0,92718.0,0.09172]
[1767718439961,0.09281954,92740.0,92718.0,0.010789]
[1767718440161,0.09281954,92740.0,92699.0,0.774591]
[1767718440162,0.09281954,92726.0,92703.0,0.09172]
[1767718440378,0.03041442,92735.0,92703.0,0.09172]
[1767718440379,0.09281954,92734.0,92703.0,0.24151787]
[1767718440769,0.09281954,92734.0,92712.0,0.010789]
[1767718440965,0.12697258,92760.0,92703.0,0.24151787]
[1767718440966,0.03041442,92751.0,92721.0,0.15200787]
[1767718441269,0.03041442,92751.0,92700.0,0.05866981]
[1767718441270,0.09172,92757.0,92740.0,0.12697258]
[1767718441467,0.09467557,92756.0,92730.0,0.09172]
[1767718441972,0.09467557,92768.0,92742.0,0.09596437]
[1767718442177,0.09467557,92768.0,92743.0,0.24826955]
[1767718442581,0.12328933,92779.0,92758.0,0.010784]
[1767718442770,0.09467557,92779.0,92752.0,0.15654955]
[1767718442973,0.09467557,92776.0,92744.0,0.09596437]
[1767718443166,0.09467557,92774.0,92754.0,0.010784]
[1767718443475,0.010781,92785.0,92760.0,0.12697258]
[1767718443680,0.09172,92788.0,92750.0,0.12697258]
[1767718443681,0.09467557,92779.0,92750.0,0.12697258]
[1767718443870,0.09467557,92778.0,92751.0,0.09172]
[1767718444069,0.09467557,92777.0,92750.0,0.12697258]
[1767718444367,0.09467557,92777.0,92751.0,0.09172]
[1767718444571,0.09467557,92777.0,92756.0,0.010784]
[1767718444773,0.09467557,92777.0,92752.0,0.010785]
[1767718444975,0.09467557,92777.0,92751.0,0.09172]
[1767718444976,0.09467557,92777.0,92758.0,0.010784]
[1767718445174,0.09467557,92777.0,92759.0,0.09172]
[1767718445376,0.09467557,92777.0,92755.0,0.010784]
[1767718445377,0.12048249,92777.0,92755.0,0.010784]
[1767718445680,0.09467557,92776.0,92756.0,0.09172]
[1767718445871,0.09467557,92776.0,92755.0,0.010784]
[1767718446175,0.09467557,92776.0,92757.0,0.010784]
[1767718446382,0.09467557,92776.0,92760.0,0.12697258]
[1767718446875,0.09467557,92776.0,92758.0,0.010784]
[1767718447077,0.09467557,92776.0,92750.0,0.12697258]
[1767718447283,0.09467557,92770.0,92751.0,0.09172]
[1767718447576,0.09467557,92770.0,92745.0,0.010786]
[1767718447577,0.09467557,92765.0,92745.0,0.010786]
[1767718447780,0.09467557,92764.0,92746.0,0.09172]
[1767718447976,0.09467557,92764.0,92747.0,0.09172]
[1767718448166,0.11833107,92762.0,92730.0,0.06058518]
[1767718448477,0.11833107,92762.0,92741.0,0.010786]
[1767718448682,0.11833107,92762.0,92743.0,0.010786]
[1767718448866,0.11833107,92759.0,92742.0,0.09172]
[1767718449070,0.09467557,92759.0,92737.0,0.09172]
[1767718449276,0.09467557,92759.0,92730.0,0.12697258]
[1767718449472,0.09467557,92759.0,92731.0,0.09172]
[1767718449880,0.09467557,92759.0,92740.0,0.12697258]
[1767718450078,0.09467557,92769.0,92740.0,0.12697258]
[1767718450478,0.09467557,92767.0,92741.0,0.010786]
[1767718450679,0.09172,92772.0,92742.0,0.09172]
[1767718450680,0.09467557,92765.0,92742.0,0.09172]
[1767718451081,0.09467557,92765.0,92743.0,0.010786]
[1767718451485,0.09376546,92799.0,92753.0,0.15654955]
[1767718451677,0.09467557,92777.0,92754.0,0.09172]
[1767718451872,0.09467557,92777.0,92755.0,0.010784]
[1767718452078,0.09467557,92777.0,92754.0,0.09172]
[1767718452079,0.09467557,92777.0,92754.0,0.102504]
[1767718452577,0.09467557,92777.0,92756.0,0.010784]
[1767718452886,0.09467557,92777.0,92754.0,0.09172]
[1767718453084,0.09467557,92773.0,92747.0,0.010785]
[1767718453286,0.09467557,92763.0,92745.0,0.09172]
[1767718453481,0.09467557,92763.0,92744.0,0.09172]
[1767718453683,0.09467557,92763.0,92743.0,0.09172]
[1767718453883,0.09467557,92763.0,92745.0,0.010786]
[1767718454387,0.09467557,92763.0,92743.0,0.09172]
[1767718454388,0.09467557,92763.0,92747.0,0.010785]
[1767718454590,0.09467557,92763.0,92743.0,0.09172]
[1767718454986,0.09467557,92763.0,92744.0,0.010786]
[1767718455690,0.09467557,92763.0,92746.0,0.010785]
[1767718455887,0.09467557,92772.0,92746.0,0.09596437]
[1767718456189,0.18639557,92772.0,92750.0,0.13775758]
[1767718456395,0.18639557,92772.0,92747.0,0.010785]
[1767718456582,0.09467557,92771.0,92746.0,0.010785]
[1767718456982,0.09467557,92771.0,92743.0,0.102506]
[1767718457186,0.09467557,92771.0,92745.0,0.010785]
[1767718457492,0.09467557,92771.0,92747.0,0.010785]
[1767718457879,0.09467557,92771.0,92749.0,0.010785]
[1767718458079,0.09467557,92771.0,92751.0,0.010785]
[1767718458291,0.09467557,92771.0,92753.0,0.010785]
[1767718458593,0.09467557,92771.0,92750.0,0.010785]
[1767718458784,0.09467557,92771.0,92750.0,0.00862537]
[1767718459181,0.09467557,92771.0,92752.0,0.010785]
[1767718459702,0.09376546,92776.0,92750.0,0.12697258]
[1767718459884,0.28016103,92777.0,92756.0,0.010784]
[1767718460085,0.28016103,92777.0,92758.0,0.010784]
[1767718460086,0.09467557,92777.0,92758.0,0.010784]
[1767718460690,0.09467557,92777.0,92760.0,0.010784]
[1767718460892,0.09467557,92777.0,92756.0,0.010784]
[1767718461092,0.09467557,92777.0,92754.0,0.09172]
[1767718461289,0.09467557,92775.0,92754.0,0.09172]
[1767718461693,0.09172,92778.0,92754.0,0.09172]
[1767718461694,0.09467557,92772.0,92754.0,0.09172]
[1767718463393,0.09467557,92763.0,92740.0,0.010786]
[1767718463592,0.09467557,92763.0,92734.0,0.06058518]
[1767718463785,0.09467557,92763.0,92739.0,0.010786]
[1767718463988,0.09467557,92763.0,92729.0,0.0981212]
[1767718463989,0.09172,92764.0,92729.0,0.00215683]
[1767718464190,0.09467557,92752.0,92733.0,0.09172]
[1767718464392,0.09467557,92752.0,92734.0,0.010787]
[1767718464595,0.09376546,92776.0,92740.0,0.010786]
[1767718464596,0.09467557,92763.0,92740.0,0.010786]
[1767718464890,0.09172,92762.0,92735.0,0.09596437]
[1767718465085,0.09467557,92763.0,92736.0,0.09596437]
[1767718465287,0.09172,92766.0,92739.0,0.09596437]
[1767718465594,0.010783,92765.0,92740.0,0.13775858]
[1767718465795,0.010783,92765.0,92740.0,0.010786]
[1767718465986,0.09467557,92765.0,92739.0,0.09596437]
[1767718466193,0.10545857,92765.0,92734.0,0.09596437]
[1767718466496,0.09467557,92765.0,92742.0,0.010786]
[1767718466687,0.09467557,92765.0,92734.0,0.09596437]
[1767718466688,0.09467557,92773.0,92748.0,0.010785]
[1767718466995,0.09467557,92773.0,92736.0,0.010786]
[1767718466996,0.010784,92755.0,92728.0,0.010787]
[1767718467198,0.010783,92767.0,92708.0,0.01079]
[1767718467199,0.09467557,92752.0,92713.0,0.06058518]
[1767718467388,0.09467557,92752.0,92734.0,0.010787]
[1767718467687,0.09467557,92752.0,92733.0,0.010787]
[1767718467897,0.09172,92759.0,92739.0,0.010786]
[1767718468192,0.09467557,92760.0,92740.0,0.12697258]
[1767718468393,0.09467557,92760.0,92739.0,0.010786]
[1767718468595,0.09172,92761.0,92739.0,0.010786]
[1767718468800,0.09172,92761.0,92737.0,0.09172]
[1767718469099,0.09172,92761.0,92738.0,0.010786]
[1767718469100,0.09467557,92761.0,92738.0,0.010786]
[1767718469299,0.10545957,92761.0,92739.0,0.09172]
[1767718469893,0.09467557,92761.0,92740.0,0.010786]
[1767718470090,0.09467557,92761.0,92742.0,0.010786]
[1767718470291,0.09467557,92771.0,92752.0,0.010785]
[1767718470492,0.09467557,92780.0,92755.0,0.010784]
[1767718470695,0.09172,92779.0,92755.0,0.010784]
[1767718470897,0.09467557,92778.0,92755.0,0.010784]
[1767718471202,0.09467557,92776.0,92752.0,0.09172]
[1767718471588,0.09467557,92776.0,92752.0,0.08472]
[1767718471791,0.0944873,92760.0,92744.0,0.09172]
[1767718471989,0.0944873,92757.0,92740.0,0.09172]
[1767718472301,0.0944873,92757.0,92733.0,0.010787]
[1767718472601,0.0944873,92757.0,92734.0,0.09172]
[1767718473088,0.09172,92767.0,92744.0,0.010786]
[1767718473089,0.0944873,92766.0,92744.0,0.010786]
[1767718473285,0.0944873,92766.0,92737.0,0.09760167]
[1767718473489,0.11645609,92765.0,92737.0,0.09760167]
[1767718473688,0.0944873,92763.0,92737.0,0.09760167]
[1767718473999,0.1052713,92760.0,92734.0,0.102507]
[1767718474199,0.09172,92769.0,92736.0,0.010786]
[1767718474200,0.0944873,92758.0,92736.0,0.010786]
[1767718474396,0.02196879,92757.0,92740.0,0.010786]
[1767718474709,0.02196879,92756.0,92740.0,0.010786]
[1767718474898,0.02196879,92755.0,92740.0,0.010786]
[1767718475096,0.02196879,92754.0,92741.0,0.09760167]
[1767718475287,0.010783,92764.0,92737.0,0.05334472]
[1767718475492,0.0944873,92760.0,92738.0,0.09172]
[1767718475697,0.0944873,92760.0,92739.0,0.09172]
[1767718476092,0.09172,92769.0,92729.0,0.13427683]
[1767718476093,0.0944873,92754.0,92729.0,0.01294383]
[1767718476302,0.11660036,92754.0,92730.0,0.09172]
[1767718476601,0.09376546,92759.0,92737.0,0.010786]
[1767718476802,0.09376546,92760.0,92737.0,0.010786]
[1767718477296,0.09376546,92760.0,92730.0,0.31629425]
[1767718477297,0.09376546,92757.0,92730.0,0.31629425]
[1767718477493,0.09376546,92757.0,92739.0,0.010786]
[1767718477692,0.09376546,92756.0,92739.0,0.010786]
[1767718478098,0.09376546,92756.0,92730.0,0.31629425]
[1767718478099,0.0944873,92755.0,92730.0,0.31629425]
[1767718478292,0.0944873,92755.0,92730.0,0.18932167]
[1767718478904,0.0944873,92755.0,92740.0,0.010786]
[1767718479088,0.09376546,92756.0,92742.0,0.010786]
[1767718479288,0.09376546,92758.0,92735.0,0.05334472]
[1767718479491,0.0944873,92743.0,92729.0,8.3e-07]
[1767718479698,0.1052743,92731.0,92729.0,8.3e-07]
[1767718479999,0.1052743,92731.0,92701.0,0.05334472]
[1767718480000,0.010788,92726.0,92701.0,0.05334472]
[1767718480191,0.010788,92726.0,92701.0,0.06413572]
[1767718480393,0.010788,92727.0,92703.0,0.01079]
[1767718480587,0.010788,92727.0,92704.0,0.09172]
[1767718480588,0.1052753,92727.0,92704.0,0.09172]
[1767718480793,0.1052753,92727.0,92705.0,0.09172]
[1767718480993,0.0944873,92727.0,92701.0,0.09172]
[1767718481300,0.0944873,92727.0,92705.0,0.01079]
[1767718481498,0.09376546,92739.0,92711.0,0.09760167]
[1767718481694,0.09172,92740.0,92720.0,0.12697258]
[1767718481900,0.09172,92740.0,92717.0,0.010789]
[1767718482212,0.09172,92740.0,92721.0,0.010788]
[1767718482397,0.0944873,92745.0,92722.0,0.09172]
[1767718482997,0.1052723,92753.0,92723.0,0.09760167]
[1767718483201,0.1862073,92752.0,92723.0,0.09760167]
[1767718483402,0.1862073,92752.0,92727.0,0.010788]
[1767718483906,0.0944873,92751.0,92727.0,0.010788]
[1767718484197,0.1052723,92748.0,92723.0,0.09760167]
[1767718484600,0.0944873,92748.0,92724.0,0.010788]
[1767718485190,0.0944873,92748.0,92722.0,0.09172]
[1767718485595,0.0944873,92748.0,92723.0,0.010788]
[1767718485806,0.12946472,92752.0,92724.0,0.09172]
[1767718485807,0.09766378,92739.0,92724.0,0.09172]
[1767718486108,0.03903525,92740.0,92713.0,0.09172]
[1767718486109,0.09766378,92734.0,92713.0,0.09172]